[Event "45th FIDE Olympiad 2024"]
[Site "Budapest"]
[Date "2024.09.11"]
[Round "1.63"]
[White "Markus, Robert"]
[Black "Galvez Dastin, Eduardo"]
[Result "1-0"]
[ECO "D45"]
[WhiteElo "2586"]
[BlackElo "2100"]
[Annotator "TA"]
[PlyCount "117"]
[EventDate "2024.09.05"]
[EventType "team-tourn"]
[EventCountry "HUN"]
[SourceTitle "playchess.com"]
[Source "ChessBase"]
[SourceQuality "1"]
[WhiteTeam "Serbia"]
[BlackTeam "Guatemala"]
[WhiteTeamCountry "SRB"]
[BlackTeamCountry "GUA"]
[TimeControl "40/5400+30:1800+30"]

{[%evp 21,117,12,6,0,0,0,9,22,37,20,25,42,42,35,34,33,43,18,41,35,57,34,36,32,25,15,8,7,12,18,62,29,46,22,62,61,82,31,31,31,31,31,88,88,88,88,88,68,68,19,40,17,17,0,35,13,17,24,26,32,56,32,164,106,166,155,162,154,293,307,300,272,298,298,287,285,4133,4133,3692,3925,808,1287,1458,465,29978,612,29979,29980,5093,799,1243,631,4133,1691,1284,591,545,409]} 1. d4 {[%emt 0:00:04]} d5 {[%emt 0:00:07]} 2. Nf3 {[%emt 0:00:11]} Nf6 {[%emt 0:00:29]} 3. c4 {[%emt 0:00:06]} c6 {[%emt 0:00:41]} 4. Nc3 {[%emt 0:00:07]} e6 {[%emt 0:00:19]} 5. e3 {[%emt 0:00:07]} Nbd7 {[%emt 0:00:16]} 6. Qc2 {[%emt 0:00:14]} Bd6 {[%emt 0:00:33]} 7. Be2 {[%emt 0:00:07]} O-O {[%emt 0:05:38]} 8. O-O {[%emt 0:00:05]} e5 {[%emt 0:20:55]} 9. cxd5 {[%emt 0:04:23]} cxd5 {[%emt 0:00:05]} 10. dxe5 {[%emt 0:03:18] was the old line (10.Nb5).} Nxe5 {[%emt 0:00:08]} 11. Rd1 {[%emt 0:00:05]} Be6 {[%emt 0:16:24]} 12. Bd2 {[%emt 0:04:58] D45: Semi-Slav: 5 e3.} Rc8 {[%emt 0:01:10]} 13. Be1 {[%emt 0:09:03]} Nxf3+ $146 {[%emt 0:02:59]} ({Predecessor:} 13... a6 14. Rac1 b5 15. a3 Qb6 16. Qb1 Bb8 17. Nd4 Bd7 18. g3 Rfe8 19. Qa2 Qd6 {0-1 Damljanovic,B (2582)-Ivanisevic,I (2645) EU-ch 13th Plovdiv 2012 (6)}) 14. Bxf3 {[%emt 0:00:08]} Bb8 {[%emt 0:00:11]} 15. Qe2 {[%emt 0:06:39]} Qc7 {[%emt 0:03:24]} 16. g3 {[%emt 0:00:09][%cal Rc3d5]} Qe5 {[%emt 0:03:33]} 17. Nb5 {[%emt 0:12:20]} Ne4 {[%emt 0:00:59]} 18. Nd4 {[%emt 0:00:48]} Bh3 {[%emt 0:13:51]} 19. Rac1 {[%emt 0:03:52]} a6 {[%emt 0:00:36] Prevents Qb5} 20. Rxc8 {[%emt 0:07:23]} Rxc8 {[%emt 0:00:45]} 21. Bg4 {[%emt 0:00:32]} Bxg4 {[%emt 0:00:58]} 22. Qxg4 {[%emt 0:00:09]} Rd8 {[%emt 0:11:17]} 23. Bc3 {[%emt 0:09:47][%cal Od4c6] And now Nc6! would win.} Nxc3 {[%emt 0:02:56]} 24. bxc3 {[%emt 0:00:05]} g6 {[%emt 0:00:28]} 25. Ne2 {[%emt 0:03:19]} h5 {[%emt 0:01:26]} 26. Qb4 {[%emt 0:01:48]} Qf5 {[%emt 0:02:46]} 27. Qe7 {[%emt 0:08:36]} Qc8 {[%emt 0:01:31]} 28. Qg5 {[%emt 0:09:04]} Rd6 {[%emt 0:00:10]} 29. Rxd5 {[%emt 0:01:45]} (29. Nf4 $1 $16) 29... Qc4 $14 {[%emt 0:00:23]} 30. Rxd6 {[%emt 0:03:47]} Bxd6 {[%emt 0:00:08]} 31. Qd8+ {[%emt 0:00:07]} Kg7 {[%emt 0:03:05]} (31... Bf8 $14 32. Qd2 Bg7) 32. Qxd6 $16 {[%emt 0:04:03]} Qxe2 {[%emt 0:00:07]} 33. Qd4+ {[%emt 0:00:19]} Kg8 {[%emt 0:04:05]} 34. a3 {[%emt 0:00:09]} b5 {[%emt 0:02:00]} 35. Kg2 {[%emt 0:01:08]} (35. a4 $1 $14) 35... Qa2 {[%emt 0:01:01]} 36. Qc5 {[%emt 0:03:30]} Qe6 {[%emt 0:00:33]} 37. Qd4 {[%emt 0:03:25]} Qa2 {[%emt 0:00:08]} 38. Qb4 {[%emt 0:00:07]} Qd5+ {[%emt 0:00:43]} 39. e4 {[%emt 0:00:05]} Qc6 {[%emt 0:00:23]} 40. Qd4 {[%emt 0:00:36]} Kf8 {[%emt 0:02:21]} 41. h3 {[%emt 0:14:26]} f5 {[%emt 0:05:03]} ({Better is} 41... Kg8 $14) 42. f3 {[%emt 0:00:38]} ({White should play} 42. Kf3 $1 $18) 42... fxe4 {[%emt 0:00:18]} (42... Qe6 $16) 43. fxe4 $18 {[%emt 0:00:04]} Qe6 {[%emt 0:08:55] [#]} 44. Kf3 $1 {[%emt 0:01:20] Threatens to win with Kf4.} Qxh3 {[%emt 0:01:56]} (44... h4 $16 45. Qh8+ (45. gxh4 Qxh3+ 46. Kf4 Qxh4+ 47. Ke5 Qe7+ 48. Kd5 Kf7 $11) 45... Kf7) 45. Qf6+ $18 {[%emt 0:00:16]} Ke8 {[%emt 0:00:38] ( -> ...Qf1+)} 46. Qxg6+ {[%emt 0:00:06]} (46. Qxa6 Qf1+ 47. Ke3 Qg1+ 48. Kf3 Qf1+ 49. Ke3 Qe1+ 50. Kd4 Qf2+ 51. Kd5 Qxg3 $11) 46... Ke7 {[%emt 0:00:28]} 47. Kf4 {[%emt 0:01:26]} (47. Qxa6 Qf1+ 48. Ke3 Qe1+ 49. Kf3 Qf1+ (49... Qxc3+ 50. Ke2 $11) 50. Ke3 Qe1+ 51. Kd4 Qxg3 52. Qb7+ (52. Qxb5 Qg1+ 53. Kd5 Qg8+ 54. Kd4 Qg1+ 55. Kd5 Qg5+ 56. e5 Qg2+ 57. Kd4 Qg4+ 58. Kc5 Qf3 $11) 52... Kf6 $11) 47... Qf1+ {[%emt 0:01:56] [#]} 48. Ke5 $1 {[%emt 0:00:20] aiming for Qe6+.} Qe1 $2 {[%emt 0:01:49]} (48... Qg2 49. Qg7+ (49. Qxa6 Qxg3+ 50. Kf5 Qg4+ 51. Ke5 Qg5+ 52. Kd4 Qd2+ 53. Ke5 Qxc3+ 54. Kf5 Qf3+ 55. Kg5 Qg4+ 56. Kh6 h4 $11) 49... Ke8) 49. Qg7+ $18 {[%emt 0:04:23]} (49. Qxa6 Qxg3+ 50. Kd5 Qd3+ 51. Ke5 Qg3+ (51... Qxc3+ 52. Kf5 $11) 52. Kd5 Qg5+ 53. Kd4 Qf6+ 54. Qxf6+ Kxf6 $11) 49... Ke8 {[%emt 0:04:14]} 50. Kd6 {[%emt 0:03:39][%csl Gd6][%cal Rg7e7]} Qd2+ {[%emt 0:00:19]} 51. Qd4 {[%emt 0:03:32]} Qh6+ {[%emt 0:02:35]} 52. Kd5 {[%emt 0:01:24]} (52. Kc7 $142) 52... Qc1 {[%emt 0:04:05]} (52... Kf7 $18 53. Qe5 h4) 53. Qh8+ {[%emt 0:01:24]} Kd7 {[%emt 0:01:59]} 54. Qg7+ {[%emt 0:00:08]} (54. Qxh5 Qd2+ 55. Ke5 Qxc3+ 56. Kf5 Qxa3 $11) 54... Kd8 {[%emt 0:00:51]} 55. Kc6 {[%emt 0:02:57]} (55. Ke6 $142 Qd1 56. Qe7+ (56. Qd4+ Qxd4 57. cxd4 a5 $18) 56... Kc8 57. Qc5+ Kb8 58. Qd6+ Qxd6+ 59. Kxd6 Kb7 60. e5) 55... Ke8 $18 {[%emt 0:00:17]} 56. Qe5+ {[%emt 0:00:34]} Kf8 {[%emt 0:01:09]} 57. Qc5+ {[%emt 0:00:23]} Kg7 {[%emt 0:00:53]} 58. Kb6 {[%emt 0:01:40]} (58. Qxh5 Qxc3+ 59. Qc5 Qxg3 $18) (58. e5 $142) 58... Qe1 {[%emt 0:00:52]} 59. Qe5+ {[%emt 0:01:08]} ({Not} 59. Kxa6 Qxg3 60. Qe7+ (60. Kxb5 h4 $11) (60. Qxh5 Qxc3 61. Qg4+ Kf6 $11) 60... Kg8 $16) 1-0

[Event "45th FIDE Olympiad 2024"]
[Site "Budapest"]
[Date "2024.09.11"]
[Round "1.64"]
[White "Aragon Trujillo, Ricardo M."]
[Black "Ivic, Velimir"]
[Result "0-1"]
[ECO "B50"]
[WhiteElo "2057"]
[BlackElo "2599"]
[Annotator "TA"]
[PlyCount "50"]
[EventDate "2024.09.05"]
[EventType "team-tourn"]
[EventCountry "HUN"]
[SourceTitle "playchess.com"]
[Source "ChessBase"]
[SourceQuality "1"]
[WhiteTeam "Guatemala"]
[BlackTeam "Serbia"]
[WhiteTeamCountry "GUA"]
[BlackTeamCountry "SRB"]
[TimeControl "40/5400+30:1800+30"]

{[%evp 9,50,0,14,17,16,15,23,0,0,6,14,-47,-55,-43,-33,-68,-83,-185,-167,-160,-170,-193,-207,-178,-179,-175,-151,-408,-423,-539,-507,-786,-776,-1045,-968,-2279,-1017,-29979,-29978,-2228,-1428,-29992,0]} 1. e4 {[%emt 0:00:04]} c5 {[%emt 0:00:16]} 2. Nf3 {[%emt 0:00:19]} d6 {[%emt 0:00:16]} 3. c3 {[%emt 0:00:18]} Nf6 {[%emt 0:00:37]} 4. h3 {[%emt 0:00:22]} Nc6 {[%emt 0:00:23]} 5. Bd3 {[%emt 0:00:51]} g5 {[%emt 0:00:44]} 6. Bc2 {[%emt 0:16:02][%cal Od2d4]} ({Much worse is} 6. Nxg5 Rg8 7. Nf3 Rxg2 $15) 6... g4 {[%emt 0:00:43]} 7. hxg4 {[%emt 0:02:00]} Bxg4 {[%emt 0:00:08]} 8. Qe2 {[%emt 0:05:27] White has an edge.} h5 {[%emt 0:04:03]} 9. d3 {[%emt 0:04:20]} Qc7 {[%emt 0:02:47]} 10. a4 {[%emt 0:04:33]} (10. Bb3 $11) 10... d5 $15 {[%emt 0:05:06][%cal Oh5h4]} 11. Na3 {[%emt 0:07:45]} a6 {[%emt 0:03:05] Wards off Nb5} 12. Rb1 {[%emt 0:09:07]} O-O-O {[%emt 0:02:38][%cal Oh5h4] Black is more active.} 13. Bd1 {[%emt 0:18:28] [#]} (13. Bg5 $17 {was worth a try.}) 13... c4 $1 $19 {[%emt 0:03:54][%mdl 512] Hoping for ...cxd3.} 14. exd5 {[%emt 0:07:16]} (14. e5 cxd3) 14... cxd3 {[%emt 0:00:52]} 15. Qxd3 {[%emt 0:00:46]} Nxd5 {[%emt 0:02:17]} ({Resist} 15... Rxd5 16. Qc4 $17) 16. Qc4 {[%emt 0:06:07]} e6 {[%emt 0:05:33]} 17. b4 {[%emt 0:03:19]} Bg7 {[%emt 0:12:10]} 18. Bb2 {[%emt 0:01:45]} (18. Bd2 $17) 18... Nb6 {[%emt 0:05:05]} 19. Qe2 {[%emt 0:04:45]} Ne5 {[%emt 0:00:38]} 20. a5 {[%emt 0:00:38]} (20. Kf1 $142 Nd5 21. Ra1) 20... Nd5 {[%emt 0:00:48] [#] ...Nf4 is the strong threat.} 21. O-O {[%emt 0:03:17]} Nxf3+ {[%emt 0:03:44]} 22. gxf3 {[%emt 0:00:03]} Bh3 {[%emt 0:00:07][%cal Od8g8]} 23. Re1 {[%emt 0:00:23]} Rhg8 {[%emt 0:01:03]} 24. Kh1 {[%emt 0:00:01]} Bxc3 {[%emt 0:00:31] ( -> ...Bg2+)} 25. Rc1 {[%emt 0:02:53]} Bg2+ {[%emt 0:00:10][%mdl 32768] Black took control after the opening.   Weighted Error Value: White=1.35/Black=0.36.  Loses game:     	White=1     	---        Mistake:       	White=3     	---        Inaccurate:     	White=2     	---        OK:         	White=5     	Black=7      Best:        	---       	Black=2     . Loss on time!?} 0-1

[Event "45th FIDE Olympiad 2024"]
[Site "Budapest"]
[Date "2024.09.11"]
[Round "1.65"]
[White "Pace, Colin"]
[Black "Martirosyan, Haik M."]
[Result "0-1"]
[ECO "C54"]
[WhiteElo "2186"]
[BlackElo "2667"]
[Annotator "TA"]
[PlyCount "46"]
[EventDate "2024.09.05"]
[EventType "team-tourn"]
[EventCountry "HUN"]
[SourceTitle "playchess.com"]
[Source "ChessBase"]
[SourceQuality "1"]
[WhiteTeam "Malta"]
[BlackTeam "Armenia"]
[WhiteTeamCountry "MLT"]
[BlackTeamCountry "ARM"]
[TimeControl "40/5400+30:1800+30"]

{[%evp 14,46,22,29,22,11,14,18,6,-2,-4,-64,-1,-176,-165,-126,-127,-311,-295,-281,-193,-596,-579,-587,-558,-587,-602,-552,-489,-912,-869,-1124,-1176,-1083,-1040]} 1. e4 e5 2. Nf3 Nc6 3. Bc4 Bc5 4. c3 Nf6 5. d3 a6 6. Bb3 Ba7 7. O-O d6 8. Nbd2 h6 9. Re1 $1 g5 {[%cal Bg7g5,Bg5g4][%mdl 32] [#]} 10. d4 $1 g4 {The position is equal.} 11. Nh4 exd4 12. Nc4 (12. cxd4 $11 Nxd4 13. Nf5) 12... Be6 ({Black should try} 12... b5 $1 $15 13. e5 Be6 14. exf6 Qxf6 15. Nxd6+ cxd6 16. Qxg4 dxc3) 13. e5 $2 (13. cxd4 $11 Bxd4 14. Nf5 Bxf5 15. exf5+ Kf8 16. Ne3) 13... d5 14. exf6 Qxf6 15. Na5 Nxa5 $19 (15... Qxh4 16. Nxc6 bxc6 17. cxd4 $11) 16. Bxd5 dxc3 (16... Qxh4 17. Qa4+ Nc6 18. Bxc6+ bxc6 19. Qxc6+ Ke7 20. Bf4 $19) 17. Be3 (17. Qa4+ Kf8 18. Rf1 (18. Ng6+ $2 fxg6 19. Be3 Bxd5 $19) 18... Bxd5 19. Qxa5) 17... Bxe3 {Black is clearly winning.} (17... Qxh4 18. Qa4+ (18. bxc3 $2 O-O-O $19) (18. Bxe6 O-O $11) 18... c6 19. Bxa7 $11) 18. Rxe3 cxb2 ({Weaker is} 18... Qxh4 19. Bxe6 O-O (19... fxe6 20. Rxe6+ Kf8 21. Qd3 $16) 20. Rg3 $11 (20. Bxg4 Rad8 $15)) 19. Rb1 O-O-O ({Less strong is} 19... Qxh4 20. Bxe6 O-O (20... fxe6 21. Rxe6+ Kf8 22. Qc2 $11) 21. Bxg4 $11) 20. Bxe6+ fxe6 21. Qe1 (21. Qxg4 $142 Rd4 22. Qxe6+ Qxe6 23. Rxe6) 21... Nc4 22. Rxe6 Qxh4 23. Qc3 {[#]} g3 $1 {Weighted Error Value: White=1.19/Black=0.20 (precise) .  Loses game:     	White=2     	---        Mistake:       	White=2     	Black=1      Inaccurate:     	---       	Black=1      OK:         	White=5     	Black=8      Strong:       	White=1     	---} 0-1

[Event "45th FIDE Olympiad 2024"]
[Site "Budapest"]
[Date "2024.09.11"]
[Round "1.66"]
[White "Sargsyan, Shant"]
[Black "Darmanin, Jake"]
[Result "1-0"]
[ECO "C97"]
[WhiteElo "2649"]
[BlackElo "2119"]
[Annotator "TA"]
[PlyCount "67"]
[EventDate "2024.09.05"]
[EventType "team-tourn"]
[EventCountry "HUN"]
[SourceTitle "playchess.com"]
[Source "ChessBase"]
[SourceQuality "1"]
[WhiteTeam "Armenia"]
[BlackTeam "Malta"]
[WhiteTeamCountry "ARM"]
[BlackTeamCountry "MLT"]
[TimeControl "40/5400+30:1800+30"]

{[%evp 23,67,16,29,26,45,34,42,36,57,56,44,34,27,42,142,135,227,219,221,213,262,232,334,335,388,395,381,380,441,436,426,429,435,418,837,803,983,996,1097,1055,1497,1494,1679,1633,1764,1593]} 1. e4 e5 2. Nf3 Nc6 3. Bb5 {[%cal Bf1b5,Bb5a4,Ba4b3][%mdl 32]} a6 4. Ba4 Nf6 5. O-O Be7 6. Re1 b5 7. Bb3 d6 8. c3 O-O 9. h3 Na5 10. Bc2 c5 {[%cal Bc7c5,Bc5c4][%mdl 32]} 11. d4 Qc7 12. d5 Bd7 13. b3 Nb7 14. Be3 c4 15. b4 {White is slightly better.} a5 16. a4 bxa4 17. Na3 {Nd2 is the strong threat.} axb4 18. cxb4 {Strongly threatening Nd2.} Rab8 {[#]} (18... c3 $14) 19. Nd2 $1 $16 {White is more active.} Rfc8 (19... Nd8 $16) 20. Ndxc4 $18 {[%cal Oe3b6] And now Bb6! would win.} Nd8 21. Rb1 (21. Bxa4 $6 Rxb4 22. Bxd7 Nxd7 $16) 21... Be8 22. Bd3 h6 (22... Bf8 $142 23. b5 Qe7) 23. Re2 (23. b5 Bf8 24. Re2 (24. Qxa4 Nb7 $18) (24. b6 Qe7 $18) 24... Qe7) 23... Nh7 24. Rc2 Qb7 25. b5 f5 26. Na5 (26. exf5 Kh8 27. Rb4 (27. Nb6 Rxc2 28. Nxc2 Bg5 $18) 27... Nf7 28. Rxa4 Bd8 $18) 26... Qa8 {[#] ...Rxc2 would now be deadly.} 27. Nc6 Nxc6 28. dxc6 ({Resist} 28. bxc6 Nf6 29. Rc4 (29. exf5 Rb3 $18) 29... Rxb1 30. Nxb1 (30. Bxb1 Bh5 $18) 30... Bd8 31. Rxa4 Qb8 $18) 28... d5 (28... f4 $142 29. Bd2 Nf6) 29. exd5 {White is clearly winning.} Bxa3 30. Bxf5 Bd6 31. b6 {[%cal Bb5b6,Bb6b7][%mdl 32]} Rd8 32. b7 Qa5 33. Bb6 Qa6 34. Bd3 {Black got outplayed after the opening.   Weighted Error Value: White=0.03 (flawless) /Black=0.42.  Mistake:       	---       	Black=4      OK:         	White=10    	Black=6      Best:        	White=1     	Black=2} 1-0

[Event "45th FIDE Olympiad 2024"]
[Site "Budapest"]
[Date "2024.09.11"]
[Round "1.66"]
[White "Mwadzura, Roy"]
[Black "Heim, Colin Peter"]
[Result "1-0"]
[ECO "B22"]
[WhiteElo "2229"]
[BlackElo "1751"]
[Annotator "NA RC"]
[PlyCount "27"]
[EventDate "2024.09.05"]
[EventType "team-tourn"]
[EventCountry "HUN"]
[SourceTitle "playchess.com"]
[Source "ChessBase"]
[SourceQuality "1"]
[WhiteTeam "Zimbabwe"]
[BlackTeam "US Virgin Islands"]
[WhiteTeamCountry "ZIM"]
[TimeControl "40/5400+30:1800+30"]

1. e4 c5 2. Nf3 Nc6 3. c3 e6 4. d4 cxd4 5. cxd4 Bb4+ 6. Nc3 Nf6 7. Bd3 a6 8. O-O O-O 9. e5 Ne8 10. Bxh7+ Kh8 11. Ng5 g6 12. Nxf7+ Rxf7 13. Bxg6 Rf8 14. Qh5+ 1-0

[Event "45th FIDE Olympiad 2024"]
[Site "Budapest"]
[Date "2024.09.11"]
[Round "1.67"]
[White "Novak, Attila Robert"]
[Black "Hovhannisyan, Robert"]
[Result "0-1"]
[ECO "D02"]
[WhiteElo "2135"]
[BlackElo "2619"]
[Annotator "TA"]
[PlyCount "83"]
[EventDate "2024.09.05"]
[EventType "team-tourn"]
[EventCountry "HUN"]
[SourceTitle "playchess.com"]
[Source "ChessBase"]
[SourceQuality "1"]
[WhiteTeam "Malta"]
[BlackTeam "Armenia"]
[WhiteTeamCountry "MLT"]
[BlackTeamCountry "ARM"]
[TimeControl "40/5400+30:1800+30"]

{[%evp 9,83,10,8,0,0,0,0,-8,0,-13,0,0,-1,-22,-22,-19,-27,-68,-45,-94,-80,-93,-74,-93,-66,-86,-62,-159,-154,-183,-139,-177,-170,-168,-165,-178,-177,-222,-241,-236,-245,-191,-233,-223,-199,-229,-229,-270,-272,-266,-281,-281,-274,-322,-322,-322,-317,-361,-355,-346,-291,-321,-314,-314,-290,-303,-299,-293,-285,-283,-284,-312,-306,-285,-287,-297]} 1. d4 Nf6 2. Nf3 d5 3. g3 Bf5 4. c4 e6 5. Nc3 h6 6. cxd5 exd5 7. Qb3 Nc6 {[%cal Bb8c6,Bc6a5,Ba5c4][%mdl 32]} 8. Bf4 {The position is equal.} Na5 9. Qa4+ c6 10. Bg2 Nc4 11. Qb3 Qb6 12. O-O g5 $36 {[%mdl 2048] Black is pushing.} ({Don't play} 12... Nxb2 $6 13. Ne5 $14) 13. Be5 Nxe5 14. dxe5 (14. Nxe5 $15 Bd6 15. Qxb6 axb6 16. a3) 14... Nd7 $17 {White is on the road to losing.} 15. Qxb6 axb6 16. Nd4 Bg6 17. e6 Nf6 18. e4 dxe4 19. Rfe1 {[%cal Rc3e4]} Bc5 20. exf7+ Kxf7 21. Nb3 {[%cal Ob3c5]} Bb4 22. Nd2 Rhe8 23. Bxe4 Nxe4 24. Ndxe4 {[#]} Rxe4 {[%mdl 512]} 25. Nxe4 Bxe1 26. Rxe1 Rxa2 $19 {[%mdl 4096] Endgame. KRB-KRN} 27. Nd6+ Kf6 28. Re2 Bh5 29. f3 Bxf3 30. Rd2 Bd5 31. Ne8+ Ke5 32. Kf2 Ra8 33. Nc7 Rf8+ 34. Ke3 Rd8 {Black has a decisive advantage.} 35. Nxd5 Rxd5 {KR-KR} ({Much less strong is} 35... cxd5 36. Rf2 $19) 36. Re2 Kd6 {[#] And now ...Re5+ would win.} 37. Rf2 Ke6 {Wards off Rf6+} 38. Rf8 h5 39. Rh8 g4 40. Kf4 Rf5+ 41. Ke4 Rb5 42. Rh6+ {Weighted Error Value: White=0.18 (very precise) /Black=0.06 (flawless) .  Mistake:       	White=2     	---        Inaccurate:     	White=1     	---        OK:         	White=12    	Black=17     Best:        	White=2     	Black=5      Brilliant:      	---       	Black=1} 0-1

[Event "45th FIDE Olympiad 2024"]
[Site "Budapest"]
[Date "2024.09.11"]
[Round "1.68"]
[White "Grigoryan, Karen H."]
[Black "Mizzi, Jack"]
[Result "1-0"]
[ECO "A21"]
[WhiteElo "2569"]
[BlackElo "2053"]
[Annotator "TA"]
[PlyCount "71"]
[EventDate "2024.09.05"]
[EventType "team-tourn"]
[EventCountry "HUN"]
[SourceTitle "playchess.com"]
[Source "ChessBase"]
[SourceQuality "1"]
[WhiteTeam "Armenia"]
[BlackTeam "Malta"]
[WhiteTeamCountry "ARM"]
[BlackTeamCountry "MLT"]
[TimeControl "40/5400+30:1800+30"]

{[%evp 17,71,0,19,0,14,16,7,0,16,11,13,0,0,-15,-14,-2,-20,-14,53,35,58,58,92,88,83,73,177,145,197,208,200,197,295,288,414,391,353,287,532,540,547,550,626,497,878,857,1028,986,3541,2786,29982,29983,29990,29991,29991,29990]} 1. c4 e5 2. d3 d6 3. Nc3 f5 4. g3 Nf6 5. Bg2 c6 6. Nf3 Be7 7. O-O O-O 8. c5 Na6 9. cxd6 Bxd6 10. a3 Nc7 11. e4 fxe4 12. dxe4 {The position is equal.} Ne6 13. h3 Qe7 14. b4 {[%cal Bb2b4,Bb4b5][%mdl 32]} a5 15. b5 Nc5 16. Be3 Be6 17. bxc6 Bb3 (17... bxc6 $11 18. Rb1 Ncxe4 19. Nxe4 Nxe4) 18. Qb1 $14 {Bxc5 would now be deadly.} a4 19. cxb7 Nxb7 {[%cal Oa8c8] [#] Black is on the road to losing.} 20. Nd5 $1 $36 {[%mdl 2048] White is really pushing.} Nxd5 21. exd5 g6 {[#]} (21... Nc5 $16 {might work better.}) 22. Nd2 $1 $18 Na5 (22... Rab8 $16 23. Ne4 (23. Nxb3 Nc5 $16) 23... Rbc8) 23. Ne4 Nc4 24. Bg5 Qb7 (24... Qd7 $142 25. Rc1 Kh8) 25. Rc1 Qa7 (25... Qd7 $142 26. Qd3 Rac8) 26. Qd3 Rac8 27. Rc3 {Threatens to win with Bh6.} Be7 $2 (27... Kg7 {was called for.} 28. Rac1 Qd7 29. Rxc4 Bxc4 30. Rxc4 Rxc4 31. Qxc4 Bxa3) 28. Bxe7 Qxe7 29. Rac1 Nb2 30. d6 Qa7 (30... Qe6 $142 31. d7 Rcd8) 31. Qb5 Rxc3 32. Rxc3 {[%cal Oc3c7] And now Rc7! would win.} Qd4 33. Rc7 {White wants to mate with Qb7.} Be6 34. Qb7 {White mates.} Rf7 35. Rxf7 Bxf7 36. d7 {Weighted Error Value: White=0.13 (very precise) /Black=0.69.  Mistake:       	---       	Black=7      Inaccurate:     	---       	Black=1      OK:         	White=7     	Black=6      Best:        	White=4     	Black=1      Strong:       	White=1     	---} 1-0

[Event "45th FIDE Olympiad 2024"]
[Site "Budapest"]
[Date "2024.09.11"]
[Round "1.68"]
[White "Mapuranga, Vitalis"]
[Black "Smith, Michael"]
[Result "1-0"]
[ECO "B02"]
[WhiteElo "2013"]
[BlackElo "1718"]
[Annotator "NA RC"]
[PlyCount "47"]
[EventDate "2024.09.05"]
[EventType "team-tourn"]
[EventCountry "HUN"]
[SourceTitle "playchess.com"]
[Source "ChessBase"]
[SourceQuality "1"]
[WhiteTeam "Zimbabwe"]
[BlackTeam "US Virgin Islands"]
[WhiteTeamCountry "ZIM"]
[TimeControl "40/5400+30:1800+30"]

1. e4 Nf6 2. e5 Nd5 3. c4 Nb6 4. d4 Nc6 5. f4 e6 6. a3 d5 7. c5 Nd7 8. Nf3 b6 9. Bb5 Bb7 10. Qa4 Ndb8 11. cxb6 axb6 12. Qc2 Be7 13. O-O O-O 14. f5 Ra5 15. Nc3 Ba6 16. Bxa6 Rxa6 17. Be3 Nd7 18. Nxd5 Nxd4 19. Nxe7+ Qxe7 20. Bxd4 c5 21. Bc3 Rd8 22. f6 gxf6 23. exf6 Nxf6 24. Ng5 1-0